[Event "Titled Tuesday Blitz September 27 Late 2022"]
[White "De La Colina, Nicolas"]
[Black "Muradli, Mahammad"]
[WhiteFideId "30946921"]
[BlackFideId "13409301"]
[WhiteElo "2046"]
[BlackElo "2611"]
[Result "0-1"]
[Round "06"]
[TimeControl "180+1"]
[Date "2022.09.28"]
[WhiteClock "0:00:03"]
[BlackClock "0:00:05"]

1. e4 {[%clk 0:03:00]}  c6 {[%clk 0:02:48]} 2. d4 {[%clk 0:03:01]}  d5 {[%clk 0:02:35]} 3. exd5 {[%clk 0:03:01]}  cxd5 {[%clk 0:02:34]} 4. Bd3 {[%clk 0:03:01]}  Nc6 {[%clk 0:02:35]} 5. c3 {[%clk 0:03:01]}  Nf6 {[%clk 0:02:33]} 6. Bf4 {[%clk 0:02:55]}  g6 {[%clk 0:02:32]} 7. h3 {[%clk 0:02:54]}  Bg7 {[%clk 0:02:32]} 8. Qc2 {[%clk 0:02:53]}  O-O {[%clk 0:02:32]} 9. Nf3 {[%clk 0:02:53]}  Re8 {[%clk 0:02:25]} 10. O-O {[%clk 0:02:52]}  Bd7 {[%clk 0:02:20]} 11. Nbd2 {[%clk 0:02:50]}  Rc8 {[%clk 0:02:20]} 12. a3 {[%clk 0:02:50]}  Nh5 {[%clk 0:02:14]} 13. Be3 {[%clk 0:02:50]}  Qc7 {[%clk 0:02:14]} 14. Rfe1 {[%clk 0:02:47]}  Nf4 {[%clk 0:02:12]} 15. Bf1 {[%clk 0:02:47]}  Bf5 {[%clk 0:02:12]} 16. Qb3 {[%clk 0:02:39]}  Na5 {[%clk 0:02:11]} 17. Qa2 {[%clk 0:02:32]}  Nc4 {[%clk 0:02:03]} 18. Nxc4 {[%clk 0:02:26]}  dxc4 {[%clk 0:02:02]} 19. Bxf4 {[%clk 0:02:02]}  Qxf4 {[%clk 0:02:03]} 20. Bxc4 {[%clk 0:02:02]}  e6 {[%clk 0:01:52]} 21. Ne5 {[%clk 0:01:53]}  Red8 {[%clk 0:01:20]} 22. Re3 {[%clk 0:01:30]}  Bxe5 {[%clk 0:00:58]} 23. Rxe5 {[%clk 0:01:29]}  h5 {[%clk 0:00:59]} 24. Rae1 {[%clk 0:01:21]}  Kg7 {[%clk 0:00:58]} 25. R5e3 {[%clk 0:01:19]}  Rd6 {[%clk 0:00:54]} 26. Be2 {[%clk 0:01:16]}  Rcd8 {[%clk 0:00:49]} 27. Bf3 {[%clk 0:01:15]}  b6 {[%clk 0:00:48]} 28. Qb3 {[%clk 0:01:14]}  h4 {[%clk 0:00:43]} 29. Qb5 {[%clk 0:01:11]}  g5 {[%clk 0:00:36]} 30. Qe5+ {[%clk 0:01:11]}  Qxe5 {[%clk 0:00:31]} 31. Rxe5 {[%clk 0:01:12]}  Kf6 {[%clk 0:00:31]} 32. Bg4 {[%clk 0:01:01]}  Bg6 {[%clk 0:00:31]} 33. Bd1 {[%clk 0:00:52]}  Rd5 {[%clk 0:00:28]} 34. Bb3 {[%clk 0:00:51]}  Rxe5 {[%clk 0:00:28]} 35. Rxe5 {[%clk 0:00:52]}  Bf5 {[%clk 0:00:26]} 36. f3 {[%clk 0:00:47]}  Ke7 {[%clk 0:00:23]} 37. Kf2 {[%clk 0:00:47]}  f6 {[%clk 0:00:21]} 38. Re3 {[%clk 0:00:47]}  Kd6 {[%clk 0:00:21]} 39. Ke1 {[%clk 0:00:46]}  Rc8 {[%clk 0:00:21]} 40. Kd2 {[%clk 0:00:46]}  a5 {[%clk 0:00:21]} 41. Bc2 {[%clk 0:00:46]}  Bxc2 {[%clk 0:00:19]} 42. Kxc2 {[%clk 0:00:47]}  Kd5 {[%clk 0:00:20]} 43. Kd3 {[%clk 0:00:44]}  b5 {[%clk 0:00:20]} 44. b3 {[%clk 0:00:42]}  Rc7 {[%clk 0:00:14]} 45. Re2 {[%clk 0:00:31]}  Rc8 {[%clk 0:00:10]} 46. Rc2 {[%clk 0:00:29]}  e5 {[%clk 0:00:11]} 47. c4+ {[%clk 0:00:27]}  bxc4+ {[%clk 0:00:12]} 48. bxc4+ {[%clk 0:00:26]}  Kd6 {[%clk 0:00:12]} 49. Rb2 {[%clk 0:00:25]}  exd4 {[%clk 0:00:13]} 50. Kxd4 {[%clk 0:00:26]}  Ke6 {[%clk 0:00:13]} 51. Rb5 {[%clk 0:00:23]}  Rd8+ {[%clk 0:00:12]} 52. Kc3 {[%clk 0:00:24]}  Rd1 {[%clk 0:00:11]} 53. Rxa5 {[%clk 0:00:17]}  Rg1 {[%clk 0:00:12]} 54. Ra6+ {[%clk 0:00:17]}  Ke5 {[%clk 0:00:09]} 55. a4 {[%clk 0:00:15]}  Rxg2 {[%clk 0:00:09]} 56. a5 {[%clk 0:00:16]}  Rg3 {[%clk 0:00:09]} 57. Ra8 {[%clk 0:00:15]}  Rxf3+ {[%clk 0:00:10]} 58. Kb4 {[%clk 0:00:16]}  Rxh3 {[%clk 0:00:10]} 59. a6 {[%clk 0:00:16]}  Rh1 {[%clk 0:00:06]} 60. Re8+ {[%clk 0:00:14]}  Kf4 {[%clk 0:00:06]} 61. a7 {[%clk 0:00:15]}  Ra1 {[%clk 0:00:06]} 62. a8=Q {[%clk 0:00:15]}  Rxa8 {[%clk 0:00:07]} 63. Rxa8 {[%clk 0:00:15]}  h3 {[%clk 0:00:07]} 64. Rh8 {[%clk 0:00:15]}  g4 {[%clk 0:00:07]} 65. c5 {[%clk 0:00:15]}  g3 {[%clk 0:00:07]} 66. c6 {[%clk 0:00:08]}  g2 {[%clk 0:00:06]} 67. Rg8 {[%clk 0:00:08]}  h2 {[%clk 0:00:06]} 68. c7 {[%clk 0:00:05]}  g1=Q {[%clk 0:00:05]} 69. c8=Q {[%clk 0:00:04]}  Qb1+ {[%clk 0:00:05]} 70. Ka5 {[%clk 0:00:03]}  Qe1+ {[%clk 0:00:04]} 71. Ka6 {[%clk 0:00:03]}  Qe2+ {[%clk 0:00:04]} 72. Ka5 {[%clk 0:00:03]}  h1=Q {[%clk 0:00:04]} 73. Qc7+ {[%clk 0:00:03]}  Qe5+ {[%clk 0:00:04]} 74. Qxe5+ {[%clk 0:00:03]}  Kxe5 {[%clk 0:00:05]} 0-1


[Site "https://www.chess.com"]

[Event "Titled Tuesday Blitz September 27 Late 2022"]
[White "Djokic, Mihailo"]
[Black "Jorajuria Mendoza, Algol"]
[WhiteFideId "976440"]
[BlackFideId "5128897"]
[WhiteElo "2315"]
[BlackElo "1600"]
[Result "1-0"]
[Round "06"]
[TimeControl "180+1"]
[Date "2022.09.28"]
[WhiteClock "0:00:39"]
[BlackClock "0:00:11"]

1. e4 {[%clk 0:02:59]}  c5 {[%clk 0:02:58]} 2. Nf3 {[%clk 0:02:59]}  d6 {[%clk 0:02:58]} 3. d4 {[%clk 0:02:58]}  cxd4 {[%clk 0:02:59]} 4. Nxd4 {[%clk 0:02:59]}  Nf6 {[%clk 0:02:59]} 5. Nc3 {[%clk 0:02:59]}  Nc6 {[%clk 0:03:00]} 6. Bg5 {[%clk 0:02:59]}  e6 {[%clk 0:03:00]} 7. Qd2 {[%clk 0:03:00]}  a6 {[%clk 0:03:00]} 8. O-O-O {[%clk 0:03:01]}  Be7 {[%clk 0:03:00]} 9. f4 {[%clk 0:03:01]}  Bd7 {[%clk 0:03:01]} 10. Nf3 {[%clk 0:02:59]}  Qc7 {[%clk 0:02:52]} 11. e5 {[%clk 0:02:56]}  dxe5 {[%clk 0:02:29]} 12. fxe5 {[%clk 0:02:55]}  Ng8 {[%clk 0:01:32]} 13. Ne4 {[%clk 0:02:32]}  Rd8 {[%clk 0:01:15]} 14. Nd6+ {[%clk 0:02:30]}  Kf8 {[%clk 0:01:15]} 15. Qf4 {[%clk 0:02:29]}  f6 {[%clk 0:01:07]} 16. exf6 {[%clk 0:02:25]}  gxf6 {[%clk 0:01:06]} 17. Bh6+ {[%clk 0:02:24]}  Nxh6 {[%clk 0:01:04]} 18. Qxh6+ {[%clk 0:02:24]}  Kg8 {[%clk 0:01:04]} 19. Nf5 {[%clk 0:02:06]}  Bf8 {[%clk 0:00:49]} 20. Qxf6 {[%clk 0:02:05]}  Qf4+ {[%clk 0:00:49]} 21. Kb1 {[%clk 0:01:56]}  Qxf5 {[%clk 0:00:49]} 22. Qxf5 {[%clk 0:01:30]}  exf5 {[%clk 0:00:49]} 23. Bc4+ {[%clk 0:01:31]}  Kg7 {[%clk 0:00:45]} 24. Ng5 {[%clk 0:01:32]}  Ne5 {[%clk 0:00:31]} 25. Bb3 {[%clk 0:01:21]}  Be7 {[%clk 0:00:31]} 26. Nh3 {[%clk 0:01:15]}  Kf6 {[%clk 0:00:26]} 27. Nf4 {[%clk 0:01:14]}  Bc6 {[%clk 0:00:22]} 28. Rde1 {[%clk 0:01:13]}  Bd6 {[%clk 0:00:18]} 29. Rhf1 {[%clk 0:01:12]}  Rde8 {[%clk 0:00:18]} 30. h3 {[%clk 0:01:09]}  Ng6 {[%clk 0:00:18]} 31. Nd5+ {[%clk 0:00:49]}  Bxd5 {[%clk 0:00:17]} 32. Bxd5 {[%clk 0:00:50]}  Rxe1+ {[%clk 0:00:17]} 33. Rxe1 {[%clk 0:00:49]}  b6 {[%clk 0:00:17]} 34. Re6+ {[%clk 0:00:50]}  Kg5 {[%clk 0:00:18]} 35. Rxd6 {[%clk 0:00:50]}  Re8 {[%clk 0:00:17]} 36. a4 {[%clk 0:00:49]}  b5 {[%clk 0:00:17]} 37. Rxa6 {[%clk 0:00:48]}  bxa4 {[%clk 0:00:17]} 38. Rxa4 {[%clk 0:00:48]}  Rd8 {[%clk 0:00:16]} 39. Bf3 {[%clk 0:00:47]}  Ne5 {[%clk 0:00:15]} 40. h4+ {[%clk 0:00:46]}  Kf6 {[%clk 0:00:15]} 41. b4 {[%clk 0:00:44]}  Nc4 {[%clk 0:00:14]} 42. b5 {[%clk 0:00:42]}  Nd2+ {[%clk 0:00:14]} 43. Kb2 {[%clk 0:00:42]}  Rb8 {[%clk 0:00:14]} 44. c4 {[%clk 0:00:41]}  Ke5 {[%clk 0:00:14]} 45. Kc3 {[%clk 0:00:40]}  Nxf3 {[%clk 0:00:11]} 46. gxf3 {[%clk 0:00:40]}  Kf4 {[%clk 0:00:12]} 47. c5+ {[%clk 0:00:41]}  Kxf3 {[%clk 0:00:11]} 48. b6 {[%clk 0:00:41]}  f4 {[%clk 0:00:09]} 49. Kd4 {[%clk 0:00:41]}  Kg3 {[%clk 0:00:08]} 50. Kd5 {[%clk 0:00:36]}  f3 {[%clk 0:00:09]} 51. Ra3 {[%clk 0:00:35]}  Kg2 {[%clk 0:00:09]} 52. Kc6 {[%clk 0:00:34]}  f2 {[%clk 0:00:10]} 53. Ra2 {[%clk 0:00:34]}  Kg1 {[%clk 0:00:10]} 54. Rxf2 {[%clk 0:00:34]}  Kxf2 {[%clk 0:00:11]} 55. Kc7 {[%clk 0:00:35]}  Rg8 {[%clk 0:00:11]} 56. b7 {[%clk 0:00:35]}  Kg3 {[%clk 0:00:10]} 57. b8=Q {[%clk 0:00:35]}  Rxb8 {[%clk 0:00:09]} 58. Kxb8 {[%clk 0:00:36]}  Kxh4 {[%clk 0:00:10]} 59. c6 {[%clk 0:00:37]}  Kg3 {[%clk 0:00:10]} 60. c7 {[%clk 0:00:38]}  h5 {[%clk 0:00:11]} 61. c8=Q {[%clk 0:00:39]}  h4 {[%clk 0:00:11]} 62. Qc3+ {[%clk 0:00:38]}  Kg2 {[%clk 0:00:12]} 63. Qd2+ {[%clk 0:00:39]}  Kg3 {[%clk 0:00:11]} 64. Qe1+ {[%clk 0:00:39]}  Kg2 {[%clk 0:00:11]} 65. Qxh4 {[%clk 0:00:39]} 1-0


[Site "https://www.chess.com"]

[Event "Titled Tuesday Blitz September 27 Late 2022"]
[White "Gines Esteo, Pedro Antonio"]
[Black "Wadsworth, Matthew J"]
[WhiteFideId "32080190"]
[BlackFideId "415804"]
[WhiteElo "2293"]
[BlackElo "2294"]
[Result "0-1"]
[Round "06"]
[TimeControl "180+1"]
[Date "2022.09.27"]
[WhiteClock "0:00:03"]
[BlackClock "0:00:09"]

1. Nf3 {[%clk 0:02:37]}  d5 {[%clk 0:02:58]} 2. g3 {[%clk 0:02:38]}  Nf6 {[%clk 0:02:58]} 3. Bg2 {[%clk 0:02:28]}  c6 {[%clk 0:02:58]} 4. O-O {[%clk 0:02:26]}  Bf5 {[%clk 0:02:58]} 5. d3 {[%clk 0:02:26]}  e6 {[%clk 0:02:56]} 6. Nbd2 {[%clk 0:02:26]}  h6 {[%clk 0:02:55]} 7. c4 {[%clk 0:02:26]}  Be7 {[%clk 0:02:52]} 8. cxd5 {[%clk 0:02:26]}  exd5 {[%clk 0:02:52]} 9. Qb3 {[%clk 0:02:26]}  Qb6 {[%clk 0:02:51]} 10. Qc2 {[%clk 0:02:27]}  O-O {[%clk 0:02:50]} 11. e4 {[%clk 0:02:27]}  dxe4 {[%clk 0:02:50]} 12. dxe4 {[%clk 0:02:27]}  Bh7 {[%clk 0:02:50]} 13. Nh4 {[%clk 0:02:27]}  Rd8 {[%clk 0:02:37]} 14. Nc4 {[%clk 0:02:27]}  Qa6 {[%clk 0:02:34]} 15. Nf5 {[%clk 0:02:26]}  Bf8 {[%clk 0:02:33]} 16. Bf4 {[%clk 0:02:24]}  Nbd7 {[%clk 0:02:28]} 17. Rfe1 {[%clk 0:02:20]}  Bxf5 {[%clk 0:02:14]} 18. exf5 {[%clk 0:02:20]}  Nb6 {[%clk 0:02:12]} 19. Bf1 {[%clk 0:02:11]}  Nxc4 {[%clk 0:01:50]} 20. Bxc4 {[%clk 0:02:11]}  b5 {[%clk 0:01:49]} 21. Bf1 {[%clk 0:01:52]}  Nd5 {[%clk 0:01:39]} 22. Be5 {[%clk 0:01:47]}  Qb6 {[%clk 0:01:27]} 23. a3 {[%clk 0:01:34]}  f6 {[%clk 0:01:10]} 24. Bc3 {[%clk 0:01:28]}  Nxc3 {[%clk 0:01:04]} 25. bxc3 {[%clk 0:01:25]}  Bc5 {[%clk 0:00:56]} 26. Kg2 {[%clk 0:01:22]}  Rd7 {[%clk 0:00:51]} 27. Re6 {[%clk 0:01:22]}  Rad8 {[%clk 0:00:47]} 28. Qe4 {[%clk 0:01:21]}  Bxf2 {[%clk 0:00:42]} 29. Rxc6 {[%clk 0:01:18]}  Qe3 {[%clk 0:00:34]} 30. Qxe3 {[%clk 0:01:18]}  Bxe3 {[%clk 0:00:35]} 31. Bxb5 {[%clk 0:01:19]}  Rd2+ {[%clk 0:00:34]} 32. Kf3 {[%clk 0:01:16]}  Bb6 {[%clk 0:00:32]} 33. a4 {[%clk 0:00:56]}  Rxh2 {[%clk 0:00:26]} 34. a5 {[%clk 0:00:55]}  Rf2+ {[%clk 0:00:26]} 35. Kg4 {[%clk 0:00:55]}  Be3 {[%clk 0:00:25]} 36. Re1 {[%clk 0:00:54]}  h5+ {[%clk 0:00:23]} 37. Kxh5 {[%clk 0:00:50]}  Rxf5+ {[%clk 0:00:23]} 38. Kg4 {[%clk 0:00:48]}  Rxb5 {[%clk 0:00:23]} 39. Rxe3 {[%clk 0:00:47]}  Rxa5 {[%clk 0:00:23]} 40. Rc7 {[%clk 0:00:47]}  Rg5+ {[%clk 0:00:22]} 41. Kf4 {[%clk 0:00:45]}  a5 {[%clk 0:00:22]} 42. Ra7 {[%clk 0:00:45]}  Rc8 {[%clk 0:00:21]} 43. Kf3 {[%clk 0:00:41]}  Rc4 {[%clk 0:00:20]} 44. Kf2 {[%clk 0:00:39]}  Kh7 {[%clk 0:00:20]} 45. Rf3 {[%clk 0:00:38]}  Rgc5 {[%clk 0:00:19]} 46. Rxf6 {[%clk 0:00:36]}  Rxc3 {[%clk 0:00:18]} 47. Re6 {[%clk 0:00:36]}  Rg5 {[%clk 0:00:17]} 48. Re4 {[%clk 0:00:23]}  Rcxg3 {[%clk 0:00:16]} 49. Rxa5 {[%clk 0:00:23]}  Rxa5 {[%clk 0:00:13]} 50. Kxg3 {[%clk 0:00:23]}  Kg6 {[%clk 0:00:13]} 51. Rb4 {[%clk 0:00:20]}  Ra3+ {[%clk 0:00:11]} 52. Kg4 {[%clk 0:00:20]}  Ra1 {[%clk 0:00:11]} 53. Rb6+ {[%clk 0:00:20]}  Kh7 {[%clk 0:00:11]} 54. Rb7 {[%clk 0:00:21]}  Kh6 {[%clk 0:00:11]} 55. Rb6+ {[%clk 0:00:21]}  g6 {[%clk 0:00:11]} 56. Rb8 {[%clk 0:00:21]}  Ra4+ {[%clk 0:00:11]} 57. Kg3 {[%clk 0:00:22]}  Kh5 {[%clk 0:00:11]} 58. Rb5+ {[%clk 0:00:22]}  g5 {[%clk 0:00:11]} 59. Rc5 {[%clk 0:00:22]}  Ra3+ {[%clk 0:00:12]} 60. Kg2 {[%clk 0:00:23]}  Kh4 {[%clk 0:00:12]} 61. Rc4+ {[%clk 0:00:23]}  g4 {[%clk 0:00:12]} 62. Rb4 {[%clk 0:00:23]}  Ra2+ {[%clk 0:00:12]} 63. Kf1 {[%clk 0:00:21]}  Kh3 {[%clk 0:00:12]} 64. Rb8 {[%clk 0:00:21]}  Ra1+ {[%clk 0:00:11]} 65. Ke2 {[%clk 0:00:19]}  Kg2 {[%clk 0:00:11]} 66. Rg8 {[%clk 0:00:16]}  g3 {[%clk 0:00:11]} 67. Rg7 {[%clk 0:00:05]}  Ra8 {[%clk 0:00:10]} 68. Rg6 {[%clk 0:00:04]}  Re8+ {[%clk 0:00:10]} 69. Kd2 {[%clk 0:00:04]}  Kf2 {[%clk 0:00:10]} 70. Rf6+ {[%clk 0:00:04]}  Kg1 {[%clk 0:00:10]} 71. Rg6 {[%clk 0:00:05]}  g2 {[%clk 0:00:10]} 72. Rg7 {[%clk 0:00:05]}  Re5 {[%clk 0:00:10]} 73. Kd3 {[%clk 0:00:04]}  Kf2 {[%clk 0:00:09]} 74. Rf7+ {[%clk 0:00:04]}  Kg3 {[%clk 0:00:10]} 75. Kd4 {[%clk 0:00:02]}  Re1 {[%clk 0:00:09]} 76. Rg7+ {[%clk 0:00:02]}  Kf2 {[%clk 0:00:09]} 77. Rf7+ {[%clk 0:00:03]}  Ke2 {[%clk 0:00:09]} 0-1


[Site "https://www.chess.com"]

[Event "Titled Tuesday Blitz September 27 Late 2022"]
[White "Gonzalez, Francisco Silva"]
[Black "Putnam, Liam"]
[WhiteFideId "1512285"]
[BlackFideId "30938279"]
[WhiteElo "2159"]
[BlackElo "2031"]
[Result "0-1"]
[Round "06"]
[TimeControl "180+1"]
[Date "2022.09.28"]
[WhiteClock "0:00:45"]
[BlackClock "0:00:14"]

1. d4 {[%clk 0:03:00]}  Nf6 {[%clk 0:02:59]} 2. c4 {[%clk 0:03:00]}  g6 {[%clk 0:02:59]} 3. Nc3 {[%clk 0:02:59]}  Bg7 {[%clk 0:02:58]} 4. e4 {[%clk 0:03:00]}  d6 {[%clk 0:02:59]} 5. f3 {[%clk 0:02:59]}  O-O {[%clk 0:03:00]} 6. Be3 {[%clk 0:02:53]}  c5 {[%clk 0:02:53]} 7. Nge2 {[%clk 0:02:49]}  Nc6 {[%clk 0:02:51]} 8. d5 {[%clk 0:02:47]}  Ne5 {[%clk 0:02:51]} 9. Ng3 {[%clk 0:02:47]}  e6 {[%clk 0:02:51]} 10. Be2 {[%clk 0:02:46]}  exd5 {[%clk 0:02:52]} 11. cxd5 {[%clk 0:02:45]}  a6 {[%clk 0:02:52]} 12. a4 {[%clk 0:02:44]}  h5 {[%clk 0:02:52]} 13. O-O {[%clk 0:02:43]}  h4 {[%clk 0:02:51]} 14. Nh1 {[%clk 0:02:43]}  Rb8 {[%clk 0:02:33]} 15. h3 {[%clk 0:02:41]}  Nh5 {[%clk 0:02:32]} 16. f4 {[%clk 0:02:41]}  Nd7 {[%clk 0:02:24]} 17. Bxh5 {[%clk 0:02:39]}  gxh5 {[%clk 0:02:23]} 18. Qxh5 {[%clk 0:02:39]}  Qe7 {[%clk 0:01:49]} 19. Rfe1 {[%clk 0:02:31]}  f5 {[%clk 0:01:44]} 20. exf5 {[%clk 0:02:28]}  Nf6 {[%clk 0:01:42]} 21. Qg5 {[%clk 0:02:27]}  Qf7 {[%clk 0:01:37]} 22. Rad1 {[%clk 0:02:18]}  b5 {[%clk 0:01:31]} 23. axb5 {[%clk 0:02:16]}  axb5 {[%clk 0:01:32]} 24. Bf2 {[%clk 0:02:08]}  b4 {[%clk 0:01:25]} 25. Ne4 {[%clk 0:02:03]}  Nxe4 {[%clk 0:01:21]} 26. Rxe4 {[%clk 0:02:02]}  Qxf5 {[%clk 0:01:21]} 27. Re2 {[%clk 0:01:51]}  Qxg5 {[%clk 0:01:19]} 28. fxg5 {[%clk 0:01:50]}  Ba6 {[%clk 0:01:09]} 29. Red2 {[%clk 0:01:49]}  c4 {[%clk 0:01:08]} 30. Bd4 {[%clk 0:01:45]}  Rfc8 {[%clk 0:00:48]} 31. Bxg7 {[%clk 0:01:43]}  Kxg7 {[%clk 0:00:48]} 32. Nf2 {[%clk 0:01:40]}  c3 {[%clk 0:00:48]} 33. Rc2 {[%clk 0:01:36]}  b3 {[%clk 0:00:47]} 34. Rxc3 {[%clk 0:01:33]}  Rxc3 {[%clk 0:00:48]} 35. bxc3 {[%clk 0:01:34]}  b2 {[%clk 0:00:49]} 36. Rb1 {[%clk 0:01:33]}  Bc4 {[%clk 0:00:49]} 37. Nd1 {[%clk 0:01:32]}  Ra8 {[%clk 0:00:37]} 38. Nxb2 {[%clk 0:01:30]}  Rb8 {[%clk 0:00:36]} 39. Nxc4 {[%clk 0:01:30]}  Rxb1+ {[%clk 0:00:36]} 40. Kh2 {[%clk 0:01:31]}  Rd1 {[%clk 0:00:31]} 41. Nxd6 {[%clk 0:01:29]}  Rxd5 {[%clk 0:00:31]} 42. Ne4 {[%clk 0:01:25]}  Kg6 {[%clk 0:00:31]} 43. g4 {[%clk 0:01:24]}  Re5 {[%clk 0:00:26]} 44. Nf2 {[%clk 0:01:20]}  Kxg5 {[%clk 0:00:26]} 45. Kg2 {[%clk 0:01:18]}  Re3 {[%clk 0:00:25]} 46. c4 {[%clk 0:01:14]}  Kf4 {[%clk 0:00:21]} 47. Nd1 {[%clk 0:01:12]}  Re2+ {[%clk 0:00:21]} 48. Kf1 {[%clk 0:01:11]}  Rc2 {[%clk 0:00:20]} 49. Nf2 {[%clk 0:01:07]}  Kf3 {[%clk 0:00:19]} 50. Nd3 {[%clk 0:01:06]}  Rc3 {[%clk 0:00:20]} 51. Ne5+ {[%clk 0:01:05]}  Kg3 {[%clk 0:00:20]} 52. g5 {[%clk 0:01:05]}  Kxh3 {[%clk 0:00:18]} 53. g6 {[%clk 0:01:05]}  Rg3 {[%clk 0:00:16]} 54. c5 {[%clk 0:01:04]}  Rg5 {[%clk 0:00:15]} 55. g7 {[%clk 0:00:49]}  Rxg7 {[%clk 0:00:14]} 56. c6 {[%clk 0:00:49]}  Rc7 {[%clk 0:00:12]} 57. Kg1 {[%clk 0:00:48]}  Kg3 {[%clk 0:00:13]} 58. Kh1 {[%clk 0:00:48]}  h3 {[%clk 0:00:13]} 59. Kg1 {[%clk 0:00:44]}  h2+ {[%clk 0:00:14]} 60. Kh1 {[%clk 0:00:45]}  Ra7 {[%clk 0:00:14]} 0-1


[Site "https://www.chess.com"]

[Event "Titled Tuesday Blitz September 27 Late 2022"]
[White "Kamsky, Gata"]
[Black "Rastbod, Ali"]
[WhiteFideId "2000024"]
[BlackFideId "12567477"]
[WhiteElo "2666"]
[BlackElo "2191"]
[Result "1-0"]
[Round "06"]
[TimeControl "180+1"]
[Date "2022.09.27"]
[WhiteClock "0:00:48"]
[BlackClock "0:00:02"]

1. e4 {[%clk 0:03:00]}  e6 {[%clk 0:02:57]} 2. d4 {[%clk 0:02:57]}  d5 {[%clk 0:02:56]} 3. Nc3 {[%clk 0:02:57]}  Nf6 {[%clk 0:02:55]} 4. e5 {[%clk 0:02:57]}  Nfd7 {[%clk 0:02:55]} 5. f4 {[%clk 0:02:57]}  c5 {[%clk 0:02:56]} 6. Nf3 {[%clk 0:02:58]}  Nc6 {[%clk 0:02:56]} 7. Ne2 {[%clk 0:02:58]}  b5 {[%clk 0:02:51]} 8. Be3 {[%clk 0:02:54]}  a5 {[%clk 0:02:43]} 9. dxc5 {[%clk 0:02:53]}  b4 {[%clk 0:02:41]} 10. Ned4 {[%clk 0:02:49]}  Nxd4 {[%clk 0:02:41]} 11. Bxd4 {[%clk 0:02:44]}  Nxc5 {[%clk 0:02:41]} 12. Bb5+ {[%clk 0:02:37]}  Bd7 {[%clk 0:02:41]} 13. Bd3 {[%clk 0:02:37]}  Nxd3+ {[%clk 0:02:37]} 14. cxd3 {[%clk 0:02:36]}  Be7 {[%clk 0:02:31]} 15. O-O {[%clk 0:02:35]}  O-O {[%clk 0:02:32]} 16. Qd2 {[%clk 0:02:35]}  Rc8 {[%clk 0:02:15]} 17. Rac1 {[%clk 0:02:33]}  Bb5 {[%clk 0:02:15]} 18. Rxc8 {[%clk 0:02:27]}  Qxc8 {[%clk 0:02:16]} 19. Rc1 {[%clk 0:02:27]}  Qb8 {[%clk 0:02:12]} 20. Bc5 {[%clk 0:02:25]}  Bxc5+ {[%clk 0:02:05]} 21. Rxc5 {[%clk 0:02:24]}  Rc8 {[%clk 0:01:39]} 22. d4 {[%clk 0:02:20]}  Rxc5 {[%clk 0:01:29]} 23. dxc5 {[%clk 0:02:19]}  Qc7 {[%clk 0:01:30]} 24. Qe3 {[%clk 0:02:17]}  a4 {[%clk 0:01:24]} 25. b3 {[%clk 0:02:01]}  axb3 {[%clk 0:01:21]} 26. axb3 {[%clk 0:02:00]}  h6 {[%clk 0:01:21]} 27. h4 {[%clk 0:01:57]}  h5 {[%clk 0:01:18]} 28. Kh2 {[%clk 0:01:55]}  g6 {[%clk 0:01:18]} 29. Kg3 {[%clk 0:01:55]}  Kg7 {[%clk 0:01:08]} 30. Nd4 {[%clk 0:01:52]}  Qa5 {[%clk 0:00:44]} 31. c6 {[%clk 0:01:39]}  Ba6 {[%clk 0:00:43]} 32. Kf3 {[%clk 0:01:20]}  Qa1 {[%clk 0:00:28]} 33. Qd2 {[%clk 0:01:15]}  Qh1 {[%clk 0:00:10]} 34. Kg3 {[%clk 0:01:12]}  Qf1 {[%clk 0:00:06]} 35. Qxb4 {[%clk 0:01:06]}  Bd3 {[%clk 0:00:06]} 36. Qd2 {[%clk 0:01:02]}  Be4 {[%clk 0:00:06]} 37. c7 {[%clk 0:01:01]}  Qa6 {[%clk 0:00:06]} 38. Kf2 {[%clk 0:00:55]}  Qb7 {[%clk 0:00:03]} 39. Qc3 {[%clk 0:00:55]}  Qa7 {[%clk 0:00:02]} 40. c8=Q {[%clk 0:00:53]}  Qa2+ {[%clk 0:00:03]} 41. Ke1 {[%clk 0:00:53]}  Qxg2 {[%clk 0:00:03]} 42. Qe3 {[%clk 0:00:52]}  Qh1+ {[%clk 0:00:02]} 43. Kd2 {[%clk 0:00:52]}  Qg2+ {[%clk 0:00:02]} 44. Kc3 {[%clk 0:00:52]}  Qf1 {[%clk 0:00:03]} 45. Kb2 {[%clk 0:00:50]}  Qb1+ {[%clk 0:00:02]} 46. Ka3 {[%clk 0:00:48]}  Qa1+ {[%clk 0:00:03]} 47. Kb4 {[%clk 0:00:49]}  Qa7 {[%clk 0:00:02]} 48. Nxe6+ {[%clk 0:00:48]} 1-0


[Site "https://www.chess.com"]

[Event "Titled Tuesday Blitz September 27 Late 2022"]
[White "Kollars, Dmitrij"]
[Black "Wieczorek, Oskar"]
[WhiteFideId "12909572"]
[BlackFideId "1133950"]
[WhiteElo "2584"]
[BlackElo "2302"]
[Result "1-0"]
[Round "06"]
[TimeControl "180+1"]
[Date "2022.09.27"]
[WhiteClock "0:01:00"]
[BlackClock "0:00:47"]

1. Nf3 {[%clk 0:03:00]}  c5 {[%clk 0:02:58]} 2. e4 {[%clk 0:02:57]}  e6 {[%clk 0:02:58]} 3. c3 {[%clk 0:02:55]}  d5 {[%clk 0:02:58]} 4. exd5 {[%clk 0:02:56]}  exd5 {[%clk 0:02:59]} 5. d4 {[%clk 0:02:56]}  Nf6 {[%clk 0:02:59]} 6. Bd3 {[%clk 0:02:56]}  Nc6 {[%clk 0:02:58]} 7. O-O {[%clk 0:02:53]}  cxd4 {[%clk 0:02:54]} 8. cxd4 {[%clk 0:02:54]}  Be7 {[%clk 0:02:54]} 9. h3 {[%clk 0:02:52]}  O-O {[%clk 0:02:54]} 10. Nc3 {[%clk 0:02:52]}  Re8 {[%clk 0:02:54]} 11. Re1 {[%clk 0:02:49]}  a6 {[%clk 0:02:46]} 12. Bg5 {[%clk 0:02:47]}  Be6 {[%clk 0:02:34]} 13. Rc1 {[%clk 0:02:46]}  h6 {[%clk 0:02:23]} 14. Bh4 {[%clk 0:02:41]}  Rc8 {[%clk 0:01:59]} 15. a3 {[%clk 0:02:38]}  Nh5 {[%clk 0:01:45]} 16. Bxe7 {[%clk 0:02:30]}  Rxe7 {[%clk 0:01:46]} 17. Bb1 {[%clk 0:02:26]}  Nf6 {[%clk 0:01:33]} 18. Ne5 {[%clk 0:02:22]}  Qb6 {[%clk 0:01:30]} 19. Na4 {[%clk 0:02:20]}  Qd8 {[%clk 0:01:19]} 20. Nc5 {[%clk 0:02:19]}  Nxe5 {[%clk 0:01:18]} 21. dxe5 {[%clk 0:02:13]}  Nd7 {[%clk 0:01:19]} 22. Nxb7 {[%clk 0:02:07]}  Rxc1 {[%clk 0:01:17]} 23. Qxc1 {[%clk 0:02:08]}  Qb8 {[%clk 0:01:15]} 24. Nc5 {[%clk 0:01:36]}  Nxe5 {[%clk 0:01:15]} 25. Nxa6 {[%clk 0:01:34]}  Qd6 {[%clk 0:01:15]} 26. Qc5 {[%clk 0:01:30]}  Qxc5 {[%clk 0:01:13]} 27. Nxc5 {[%clk 0:01:31]}  Bxh3 {[%clk 0:01:08]} 28. Nd3 {[%clk 0:01:24]}  Bf5 {[%clk 0:01:01]} 29. Rxe5 {[%clk 0:01:17]}  Rxe5 {[%clk 0:01:01]} 30. Nxe5 {[%clk 0:01:18]}  Bxb1 {[%clk 0:01:01]} 31. a4 {[%clk 0:01:16]}  f6 {[%clk 0:01:00]} 32. Nc6 {[%clk 0:01:10]}  Kf8 {[%clk 0:00:47]} 33. a5 {[%clk 0:01:09]}  Bd3 {[%clk 0:00:47]} 34. Nb4 {[%clk 0:01:04]}  Bc4 {[%clk 0:00:47]} 35. a6 {[%clk 0:01:00]} 1-0


[Site "https://www.chess.com"]